fUSD/lending_fUSD_20260614
["ID","MTS","AMOUNT","RATE_DAILY","PERIOD"]
[425064862,1781447587000,-482.23,0.0003309,2]
[425064864,1781447587000,-500.0,0.00033123,120]
[425064865,1781447587000,-500.0,0.00033123,120]
[425064866,1781447587000,-372.52486933,0.00033123,120]
[425064870,1781447587000,-1334.75249203,0.00033149,8]
[425064867,1781447587000,-213.08059048,0.00033123,120]
[425064868,1781447587000,-180.80409042,0.00033123,120]
[425064869,1781447587000,-12270.15,0.00033138,60]
[425064822,1781447587000,-500.0,0.00032955,2]
[425064851,1781447587000,-3189.0,0.00033032,30]
[425064845,1781447587000,-410.0,0.00033028,30]
[425064861,1781447587000,-5000.0,0.00033087,2]
[425064846,1781447587000,-154.0,0.00033028,30]
[425064827,1781447587000,-50000.0,0.00033,7]
[425064847,1781447587000,-168.0,0.00033028,30]
[425064824,1781447587000,-180.16467773,0.00032967,120]
[425064823,1781447587000,-509.53144494,0.00032955,2]
[425064826,1781447587000,-161.8789891,0.00032999,5]
[425064829,1781447587000,-2349.3997888,0.00033,2]
[425064831,1781447587000,-512.97205329,0.00033,120]
[425064833,1781447587000,-166.27707781,0.00033,120]
[425064832,1781447587000,-331.96218981,0.00033,120]
[425064836,1781447587000,-192.42040012,0.00033,120]
[425064830,1781447587000,-196.85231838,0.00033,120]
[425064837,1781447587000,-463.01413087,0.00033,120]
[425064838,1781447587000,-164.58473458,0.00033,120]
[425064835,1781447587000,-193.5823682,0.00033,120]
[425064839,1781447587000,-164.45400775,0.00033,120]
[425064840,1781447587000,-324.31386013,0.00033,120]
[425064841,1781447587000,-167.0,0.00033021,30]
[425064843,1781447587000,-503.0,0.00033028,30]
[425064842,1781447587000,-233.0,0.00033021,30]
[425064834,1781447587000,-265.31991817,0.00033,120]
[425064849,1781447587000,-284.0,0.00033032,30]
[425064850,1781447587000,-689.0,0.00033032,30]
[425064904,1781447588000,-508.34,0.0003315,8]
[425064908,1781447588000,-926.37,0.0003315,8]
[425064911,1781447588000,-735.2,0.0003315,8]
[425064903,1781447588000,-1224.99,0.0003315,8]
[425064907,1781447588000,-500.0,0.0003315,8]
[425064909,1781447588000,-578.78,0.0003315,8]
[425064910,1781447588000,-951.06,0.0003315,8]
[425064902,1781447588000,-500.0,0.0003315,8]
[425064901,1781447588000,-700.76,0.0003315,8]
[425064906,1781447588000,-514.54,0.0003315,8]
[425064905,1781447588000,-1285.32,0.0003315,8]
[425064913,1781447588000,-524.27,0.0003315,8]
[425064926,1781447588000,-1222.28,0.0003315,8]
[425064914,1781447588000,-1121.81,0.0003315,8]
[425064915,1781447588000,-1031.86,0.0003315,8]
[425064919,1781447588000,-546.49,0.0003315,8]
[425064922,1781447588000,-688.19,0.0003315,8]
[425064918,1781447588000,-682.21,0.0003315,8]
[425064916,1781447588000,-648.16,0.0003315,8]
[425064917,1781447588000,-800.55,0.0003315,8]
[425064921,1781447588000,-1274.35,0.0003315,8]
[425064923,1781447588000,-500.0,0.0003315,8]
[425064929,1781447588000,-672.85,0.0003315,8]
[425064928,1781447588000,-1053.08,0.0003315,8]
[425064900,1781447588000,-350.86625712,0.0003315,8]
[425064912,1781447588000,-553.9,0.0003315,8]
[425064894,1781447588000,-1200.69,0.0003315,8]
[425064873,1781447588000,-1290.4,0.0003315,8]
[425064896,1781447588000,-985.3,0.0003315,8]
[425064924,1781447588000,-608.15,0.0003315,8]
[425064872,1781447588000,-2287.07,0.0003315,8]
[425064871,1781447588000,-1928.24,0.0003315,8]
[425064874,1781447588000,-569.09,0.0003315,8]
[425064876,1781447588000,-957.59,0.0003315,8]
[425064875,1781447588000,-706.5,0.0003315,8]
[425064877,1781447588000,-510.86,0.0003315,8]
[425064878,1781447588000,-509.55711777,0.0003315,8]
[425064880,1781447588000,-512.97,0.0003315,8]
[425064888,1781447588000,-500.0,0.0003315,8]
[425064879,1781447588000,-1013.37,0.0003315,8]
[425064886,1781447588000,-552.72,0.0003315,8]
[425064895,1781447588000,-1007.63,0.0003315,8]
[425064885,1781447588000,-1280.28,0.0003315,8]
[425064882,1781447588000,-558.29,0.0003315,8]
[425064883,1781447588000,-925.25,0.0003315,8]
[425064887,1781447588000,-542.62,0.0003315,8]
[425064884,1781447588000,-1526.43,0.0003315,8]
[425064890,1781447588000,-614.99,0.0003315,8]
[425064899,1781447588000,-1067.78,0.0003315,8]
[425064889,1781447588000,-685.22,0.0003315,8]
[425064891,1781447588000,-736.33,0.0003315,8]
[425064892,1781447588000,-801.17,0.0003315,8]
[425064893,1781447588000,-1300.69,0.0003315,8]
[425064897,1781447588000,-1573.21,0.0003315,8]
[425064898,1781447588000,-738.99,0.0003315,8]
[425064881,1781447588000,-630.1,0.0003315,8]
[425064931,1781447588000,-1281.05,0.0003315,8]
[425064920,1781447588000,-1400.43,0.0003315,8]
[425064930,1781447588000,-500.0,0.0003315,8]
[425064959,1781447588000,-806.88,0.0003315,8]
[425064968,1781447588000,-790.09,0.0003315,8]
[425064958,1781447588000,-510.28,0.0003315,8]
[425064962,1781447588000,-544.6,0.0003315,8]
[425064960,1781447588000,-500.0,0.0003315,8]
[425064964,1781447588000,-2153.84,0.0003315,8]
[425064963,1781447588000,-866.85,0.0003315,8]
[425064966,1781447588000,-556.37,0.0003315,8]
[425064965,1781447588000,-815.68,0.0003315,8]
[425064969,1781447588000,-500.0,0.0003315,8]
[425064974,1781447588000,-1022.53,0.0003315,8]
[425064970,1781447588000,-520.69,0.0003315,8]
[425064961,1781447588000,-853.99,0.0003315,8]
[425064973,1781447588000,-500.0,0.0003315,8]
[425064980,1781447588000,-500.0,0.0003315,8]
[425064971,1781447588000,-648.3,0.0003315,8]
[425064975,1781447588000,-543.72,0.0003315,8]
[425064978,1781447588000,-573.76,0.0003315,8]
[425064981,1781447588000,-689.06,0.0003315,8]
[425064976,1781447588000,-597.42,0.0003315,8]
[425064977,1781447588000,-1193.0,0.0003315,8]
[425064979,1781447588000,-1254.7,0.0003315,8]
[425064983,1781447588000,-1746.88,0.0003315,8]
[425064982,1781447588000,-723.54,0.0003315,8]
[425064986,1781447588000,-500.0,0.0003315,8]
[425064985,1781447588000,-872.27,0.0003315,8]
[425064972,1781447588000,-351.93190841,0.0003315,8]
[425064956,1781447588000,-607.25,0.0003315,8]
[425064927,1781447588000,-1452.09,0.0003315,8]
[425064957,1781447588000,-638.31,0.0003315,8]
[425064967,1781447588000,-534.02,0.0003315,8]
[425064925,1781447588000,-1189.57,0.0003315,8]
[425064932,1781447588000,-532.02,0.0003315,8]
[425064934,1781447588000,-1604.32,0.0003315,8]
[425064933,1781447588000,-500.0,0.0003315,8]
[425064936,1781447588000,-664.01,0.0003315,8]
[425064935,1781447588000,-1015.25,0.0003315,8]
[425064938,1781447588000,-1037.86,0.0003315,8]
[425064984,1781447588000,-784.28,0.0003315,8]
[425064937,1781447588000,-1047.49,0.0003315,8]
[425064940,1781447588000,-773.85,0.0003315,8]
[425064939,1781447588000,-500.0,0.0003315,120]
[425064941,1781447588000,-1207.41,0.0003315,8]
[425064943,1781447588000,-508.13,0.0003315,8]
[425064944,1781447588000,-586.53,0.0003315,8]
[425064942,1781447588000,-766.55,0.0003315,8]
[425064950,1781447588000,-520.02,0.0003315,8]
[425064951,1781447588000,-1398.15,0.0003315,8]
[425064954,1781447588000,-554.77,0.0003315,8]
[425064952,1781447588000,-841.95,0.0003315,8]
[425064953,1781447588000,-500.0,0.0003315,8]
[425064945,1781447588000,-1099.99,0.0003315,8]
[425064949,1781447588000,-1195.63,0.0003315,8]
[425064947,1781447588000,-671.88,0.0003315,8]
[425064948,1781447588000,-1425.15,0.0003315,8]
[425064946,1781447588000,-899.88,0.0003315,8]
[425064955,1781447588000,-1132.03,0.0003315,8]
[425065026,1781447589000,-710.6,0.0003315,8]
[425065023,1781447589000,-712.15,0.0003315,8]
[425065022,1781447589000,-1214.87,0.0003315,8]
[425065028,1781447589000,-932.78,0.0003315,8]
[425065017,1781447589000,-535.63618553,0.0003315,8]
[425065027,1781447589000,-556.38,0.0003315,8]
[425065018,1781447589000,-1086.15,0.0003315,8]
[425065020,1781447589000,-752.56,0.0003315,8]
[425065019,1781447589000,-1794.38,0.0003315,8]
[425065025,1781447589000,-500.0,0.0003315,8]
[425065021,1781447589000,-1362.07,0.0003315,8]
[425065024,1781447589000,-658.12,0.0003315,8]
[425065041,1781447589000,-519.48,0.0003315,8]
[425065029,1781447589000,-1530.48,0.0003315,8]
[425065040,1781447589000,-1038.13,0.0003315,8]
[425065038,1781447589000,-500.0,0.0003315,8]
[425065033,1781447589000,-987.41,0.0003315,8]
[425065034,1781447589000,-500.0,0.0003315,8]
[425065036,1781447589000,-1199.11,0.0003315,8]
[425065031,1781447589000,-1329.36,0.0003315,8]
[425065035,1781447589000,-747.07,0.0003315,8]
[425065032,1781447589000,-578.24,0.0003315,8]
[425065037,1781447589000,-579.71,0.0003315,8]
[425065039,1781447589000,-1016.47,0.0003315,8]
[425065014,1781447589000,-606.2,0.0003315,8]
[425065030,1781447589000,-836.13,0.0003315,8]
[425065009,1781447589000,-694.97,0.0003315,8]
[425064998,1781447589000,-529.52,0.0003315,8]
[425065016,1781447589000,-648.66,0.0003315,8]
[425065043,1781447589000,-597.59,0.0003315,8]
[425064993,1781447589000,-1046.11,0.0003315,8]
[425064994,1781447589000,-892.45,0.0003315,8]
[425064987,1781447589000,-559.91,0.0003315,8]
[425064988,1781447589000,-639.31,0.0003315,8]
[425064989,1781447589000,-623.88,0.0003315,8]
[425064990,1781447589000,-504.6,0.0003315,8]
[425064991,1781447589000,-533.2,0.0003315,8]
[425064992,1781447589000,-715.69,0.0003315,8]
[425064995,1781447589000,-566.53,0.0003315,8]
[425064997,1781447589000,-500.0,0.0003315,8]
[425065000,1781447589000,-536.09,0.0003315,8]
[425065011,1781447589000,-681.48,0.0003315,8]
[425064999,1781447589000,-1199.94,0.0003315,8]
[425064996,1781447589000,-714.38,0.0003315,8]
[425065001,1781447589000,-611.86,0.0003315,8]
[425065005,1781447589000,-1285.7,0.0003315,8]
[425065004,1781447589000,-1992.83,0.0003315,8]
[425065003,1781447589000,-1220.66,0.0003315,8]
[425065007,1781447589000,-467.51813297,0.0003315,8]
[425065006,1781447589000,-694.6,0.0003315,8]
[425065008,1781447589000,-577.76,0.0003315,8]
[425065012,1781447589000,-1019.53,0.0003315,8]
[425065015,1781447589000,-1236.08,0.0003315,8]
[425065010,1781447589000,-638.67,0.0003315,8]
[425065013,1781447589000,-770.14,0.0003315,8]
[425065002,1781447589000,-272.51553931,0.0003315,8]
[425065044,1781447589000,-565.44,0.0003315,8]
[425065042,1781447589000,-856.87,0.0003315,8]
[425065046,1781447589000,-657.3,0.0003315,8]
[425065077,1781447589000,-497.88468646,0.0003315,8]
[425065087,1781447589000,-509.71,0.0003315,8]
[425065076,1781447589000,-3250.13,0.0003315,8]
[425065078,1781447589000,-1539.52,0.0003315,8]
[425065079,1781447589000,-870.51,0.0003315,8]
[425065080,1781447589000,-692.78,0.0003315,8]
[425065081,1781447589000,-500.0,0.0003315,8]
[425065086,1781447589000,-920.43,0.0003315,8]
[425065085,1781447589000,-553.44,0.0003315,8]
[425065083,1781447589000,-1661.43,0.0003315,8]
[425065084,1781447589000,-743.01,0.0003315,8]
[425065088,1781447589000,-662.85,0.0003315,8]
[425065075,1781447589000,-1461.98,0.0003315,8]
[425065093,1781447589000,-1701.25,0.0003315,8]
[425065096,1781447589000,-558.94,0.0003315,8]
[425065092,1781447589000,-674.5,0.0003315,8]
[425065099,1781447589000,-720.7,0.0003315,8]
[425065094,1781447589000,-592.38,0.0003315,8]
[425065090,1781447589000,-698.01,0.0003315,8]
[425065098,1781447589000,-605.88,0.0003315,8]
[425065091,1781447589000,-2667.75,0.0003315,8]
[425065097,1781447589000,-261.45321378,0.0003315,2]
[425065089,1781447589000,-605.61,0.0003315,8]
[425065100,1781447589000,-702.01,0.0003315,8]
[425065101,1781447589000,-502.0,0.0003315,8]
[425065102,1781447589000,-2238.28,0.0003315,8]
[425065095,1781447589000,-1169.04,0.0003315,8]
[425065074,1781447589000,-992.68,0.0003315,8]
[425065082,1781447589000,-540.29,0.0003315,8]
[425065070,1781447589000,-616.02,0.0003315,8]
[425065045,1781447589000,-1068.73,0.0003315,8]
[425065067,1781447589000,-500.0,0.0003315,8]
[425065049,1781447589000,-944.34,0.0003315,8]
[425065051,1781447589000,-1042.52,0.0003315,8]
[425065047,1781447589000,-1514.46,0.0003315,8]
[425065050,1781447589000,-675.87,0.0003315,8]
[425065048,1781447589000,-663.09,0.0003315,8]
[425065063,1781447589000,-564.84,0.0003315,8]
[425065061,1781447589000,-532.23,0.0003315,8]
[425065052,1781447589000,-881.04,0.0003315,8]
[425065053,1781447589000,-642.31,0.0003315,8]
[425065055,1781447589000,-845.18,0.0003315,8]
[425065054,1781447589000,-702.19,0.0003315,8]
[425065062,1781447589000,-657.48,0.0003315,8]
[425065058,1781447589000,-729.66,0.0003315,8]
[425065065,1781447589000,-835.21,0.0003315,8]
[425065056,1781447589000,-631.21,0.0003315,8]
[425065069,1781447589000,-500.0,0.0003315,8]
[425065072,1781447589000,-277.84240983,0.0003315,8]
[425065068,1781447589000,-880.78,0.0003315,8]
[425065073,1781447589000,-869.12,0.0003315,8]
[425065071,1781447589000,-3014.18,0.0003315,8]
[425065064,1781447589000,-648.15,0.0003315,8]
[425065059,1781447589000,-815.38,0.0003315,8]
[425065060,1781447589000,-1150.58,0.0003315,8]
[425065057,1781447589000,-500.0,0.0003315,8]
[425065066,1781447589000,-2000.0,0.0003315,2]
[425065138,1781447590000,-3706.06,0.0003315,8]
[425065141,1781447590000,-658.84,0.0003315,8]
[425065143,1781447590000,-610.83,0.0003315,8]
[425065146,1781447590000,-540.32,0.0003315,8]
[425065142,1781447590000,-1682.54,0.0003315,8]
[425065136,1781447590000,-2931.64,0.0003315,8]
[425065144,1781447590000,-1282.28,0.0003315,8]
[425065132,1781447590000,-1082.98,0.0003315,8]
[425065135,1781447590000,-3026.85,0.0003315,8]
[425065128,1781447590000,-1116.26,0.0003315,8]
[425065145,1781447590000,-528.7,0.0003315,8]
[425065140,1781447590000,-518.74,0.0003315,8]
[425065139,1781447590000,-742.57,0.0003315,8]
[425065151,1781447590000,-1000.0,0.0003315,8]
[425065148,1781447590000,-1109.22,0.0003315,8]
[425065147,1781447590000,-636.66,0.0003315,8]
[425065159,1781447590000,-500.0,0.0003315,8]
[425065158,1781447590000,-11664.09,0.0003315,8]
[425065150,1781447590000,-1749.66,0.0003315,8]
[425065153,1781447590000,-508.2,0.0003315,8]
[425065149,1781447590000,-4001.43,0.0003315,8]
[425065157,1781447590000,-563.46,0.0003315,8]
[425065155,1781447590000,-1278.35,0.0003315,8]
[425065152,1781447590000,-1407.31,0.0003315,8]
[425065154,1781447590000,-1023.6,0.0003315,8]
[425065129,1781447590000,-500.0,0.0003315,8]
[425065137,1781447590000,-528.8,0.0003315,8]
[425065130,1781447590000,-626.04,0.0003315,8]
[425065105,1781447590000,-2663.08,0.0003315,8]
[425065131,1781447590000,-704.65,0.0003315,8]
[425065156,1781447590000,-500.0,0.0003315,8]
[425065103,1781447590000,-682.04,0.0003315,8]
[425065106,1781447590000,-580.54,0.0003315,8]
[425065109,1781447590000,-550.82,0.0003315,8]
[425065110,1781447590000,-1157.66,0.0003315,8]
[425065107,1781447590000,-623.6,0.0003315,8]
[425065104,1781447590000,-966.37,0.0003315,8]
[425065108,1781447590000,-2017.64,0.0003315,8]
[425065111,1781447590000,-500.0,0.0003315,8]
[425065113,1781447590000,-543.63,0.0003315,8]
[425065112,1781447590000,-842.22,0.0003315,8]
[425065114,1781447590000,-1675.9,0.0003315,8]
[425065133,1781447590000,-702.05,0.0003315,8]
[425065120,1781447590000,-877.23,0.0003315,8]
[425065117,1781447590000,-1427.79,0.0003315,8]
[425065116,1781447590000,-561.08104662,0.0003315,8]
[425065119,1781447590000,-310.3514669,0.0003315,8]
[425065121,1781447590000,-546.64,0.0003315,8]
[425065118,1781447590000,-5751.63,0.0003315,8]
[425065122,1781447590000,-1056.35,0.0003315,8]
[425065124,1781447590000,-10759.52,0.0003315,8]
[425065125,1781447590000,-1143.85,0.0003315,8]
[425065134,1781447590000,-4182.59,0.0003315,8]
[425065123,1781447590000,-940.15,0.0003315,8]
[425065126,1781447590000,-679.83,0.0003315,8]
[425065127,1781447590000,-825.79,0.0003315,8]
[425065115,1781447590000,-703.84,0.0003315,8]
[425065162,1781447590000,-505.16,0.0003315,8]
[425065217,1781447590000,-922.21,0.0003315,8]
[425065160,1781447590000,-25282.9,0.0003315,8]
[425065196,1781447590000,-900.28,0.0003315,8]
[425065195,1781447590000,-707.83,0.0003315,8]
[425065192,1781447590000,-878.66,0.0003315,8]
[425065198,1781447590000,-12728.02,0.0003315,8]
[425065197,1781447590000,-822.75,0.0003315,8]
[425065199,1781447590000,-2061.13,0.0003315,8]
[425065208,1781447590000,-640.65,0.0003315,8]
[425065201,1781447590000,-649.93,0.0003315,8]
[425065200,1781447590000,-1297.07,0.0003315,8]
[425065204,1781447590000,-1057.08,0.0003315,8]
[425065203,1781447590000,-461.67442786,0.0003315,8]
[425065202,1781447590000,-1326.3,0.0003315,8]
[425065191,1781447590000,-1357.49,0.0003315,8]
[425065207,1781447590000,-5289.14,0.0003315,8]
[425065209,1781447590000,-955.12,0.0003315,8]
[425065210,1781447590000,-1648.13,0.0003315,8]
[425065216,1781447590000,-921.05,0.0003315,8]
[425065211,1781447590000,-861.57,0.0003315,8]
[425065212,1781447590000,-577.21,0.0003315,8]
[425065215,1781447590000,-1609.77,0.0003315,8]
[425065213,1781447590000,-800.7,0.0003315,8]
[425065218,1781447590000,-1133.48,0.0003315,8]
[425065214,1781447590000,-2104.15,0.0003315,8]
[425065219,1781447590000,-837.18,0.0003315,8]
[425065220,1781447590000,-741.37,0.0003315,8]
[425065163,1781447590000,-2026.58,0.0003315,8]
[425065206,1781447590000,-1599.83,0.0003315,8]
[425065190,1781447590000,-1129.02,0.0003315,2]
[425065205,1781447590000,-707.22,0.0003315,8]
[425065194,1781447590000,-839.66,0.0003315,8]
[425065164,1781447590000,-589.03,0.0003315,8]
[425065193,1781447590000,-529.83,0.0003315,8]
[425065165,1781447590000,-1296.71,0.0003315,8]
[425065167,1781447590000,-2890.54,0.0003315,8]
[425065161,1781447590000,-677.78,0.0003315,8]
[425065170,1781447590000,-1343.56,0.0003315,8]
[425065168,1781447590000,-1801.16,0.0003315,8]
[425065166,1781447590000,-557.28,0.0003315,8]
[425065169,1781447590000,-1828.15,0.0003315,8]
[425065173,1781447590000,-595.31,0.0003315,8]
[425065183,1781447590000,-3216.2,0.0003315,8]
[425065175,1781447590000,-1413.1,0.0003315,8]
[425065184,1781447590000,-2562.95,0.0003315,8]
[425065174,1781447590000,-1866.64,0.0003315,8]
[425065171,1781447590000,-1463.18,0.0003315,8]
[425065187,1781447590000,-1108.18,0.0003315,8]
[425065188,1781447590000,-605.58,0.0003315,8]
[425065176,1781447590000,-577.98,0.0003315,8]
[425065189,1781447590000,-2020.73,0.0003315,8]
[425065186,1781447590000,-382.48011971,0.0003315,8]
[425065185,1781447590000,-1440.23,0.0003315,8]
[425065180,1781447590000,-1090.91,0.0003315,8]
[425065179,1781447590000,-763.45,0.0003315,8]
[425065177,1781447590000,-500.0,0.0003315,8]
[425065181,1781447590000,-500.0,0.0003315,8]
[425065178,1781447590000,-5973.16,0.0003315,8]
[425065172,1781447590000,-1214.13,0.0003315,8]
[425065182,1781447590000,-3655.13,0.0003315,8]
[425065261,1781447591000,-957.59,0.00033424,8]
[425065257,1781447591000,-2287.07,0.00033424,8]
[425065262,1781447591000,-510.86,0.00033424,8]
[425065258,1781447591000,-569.09,0.00033424,8]
[425065260,1781447591000,-706.5,0.00033424,8]
[425065247,1781447591000,-156.91337516,0.000333,14]
[425065266,1781447591000,-558.29,0.00033424,8]
[425065267,1781447591000,-925.25,0.00033424,8]
[425065256,1781447591000,-1928.24,0.00033424,8]
[425065253,1781447591000,-20000.00000099,0.000334,3]
[425065259,1781447591000,-1290.4,0.00033424,8]
[425065255,1781447591000,-435.23408192,0.00033416,7]
[425065263,1781447591000,-1013.37,0.00033424,8]
[425065272,1781447591000,-500.0,0.00033424,8]
[425065264,1781447591000,-630.1,0.00033424,8]
[425065269,1781447591000,-1280.28,0.00033424,8]
[425065268,1781447591000,-1526.43,0.00033424,8]
[425065270,1781447591000,-552.72,0.00033424,8]
[425065278,1781447591000,-1200.69,0.00033424,8]
[425065274,1781447591000,-614.99,0.00033424,8]
[425065280,1781447591000,-985.3,0.00033424,8]
[425065271,1781447591000,-542.62,0.00033424,8]
[425065277,1781447591000,-1300.69,0.00033424,8]
[425065279,1781447591000,-1007.63,0.00033424,8]
[425065275,1781447591000,-736.33,0.00033424,8]
[425065273,1781447591000,-685.22,0.00033424,8]
[425065249,1781447591000,-16315.663,0.000333,10]
[425065265,1781447591000,-512.97,0.00033424,8]
[425065252,1781447591000,-280.69599059,0.00033356,60]
[425065221,1781447591000,-1698.66,0.0003315,8]
[425065246,1781447591000,-156.91337516,0.000333,14]
[425065276,1781447591000,-801.17,0.00033424,8]
[425065222,1781447591000,-5871.97,0.0003315,8]
[425065223,1781447591000,-500.0,0.0003315,8]
[425065224,1781447591000,-1401.83,0.0003315,8]
[425065225,1781447591000,-264.25,0.00033154,7]
[425065230,1781447591000,-5000.0,0.00033248,2]
[425065226,1781447591000,-167.31544085,0.00033197,7]
[425065227,1781447591000,-150.0,0.00033226,30]
[425065229,1781447591000,-5000.0,0.00033248,2]
[425065228,1781447591000,-9790.41776268,0.00033248,2]
[425065242,1781447591000,-156.91337517,0.000333,14]
[425065232,1781447591000,-5000.0,0.00033248,2]
[425065231,1781447591000,-5000.0,0.00033248,2]
[425065245,1781447591000,-156.91337516,0.000333,14]
[425065233,1781447591000,-299.139836,0.0003325,2]
[425065237,1781447591000,-250.0,0.0003325,2]
[425065238,1781447591000,-250.0,0.0003325,2]
[425065234,1781447591000,-250.0,0.0003325,2]
[425065239,1781447591000,-250.0,0.0003325,2]
[425065236,1781447591000,-250.0,0.0003325,2]
[425065241,1781447591000,-212.82135112,0.00033257,14]
[425065240,1781447591000,-150.504725,0.00033255,120]
[425065243,1781447591000,-156.91337516,0.000333,14]
[425065248,1781447591000,-3000.0,0.000333,20]
[425065250,1781447591000,-16315.66,0.000333,20]
[425065244,1781447591000,-156.91337516,0.000333,14]
[425065254,1781447591000,-79000.17972997,0.000334,20]
[425065251,1781447591000,-448.23863647,0.00033333,14]
[425065235,1781447591000,-250.0,0.0003325,2]
[425065282,1781447591000,-738.99,0.00033424,8]
[425065338,1781447591000,-1132.03,0.00033424,8]
[425065294,1781447591000,-735.2,0.00033424,8]
[425065316,1781447591000,-443.76464076,0.00033424,8]
[425065312,1781447591000,-672.85,0.00033424,8]
[425065314,1781447591000,-1281.05,0.00033424,8]
[425065315,1781447591000,-532.02,0.00033424,8]
[425065313,1781447591000,-500.0,0.00033424,8]
[425065321,1781447591000,-1037.86,0.00033424,8]
[425065323,1781447591000,-773.85,0.00033424,8]
[425065324,1781447591000,-1207.41,0.00033424,8]
[425065330,1781447591000,-671.88,0.00033424,8]
[425065326,1781447591000,-508.13,0.00033424,8]
[425065322,1781447591000,-500.0,0.00033424,120]
[425065325,1781447591000,-766.55,0.00033424,8]
[425065331,1781447591000,-1425.15,0.00033424,8]
[425065317,1781447591000,-1604.32,0.00033424,8]
[425065327,1781447591000,-1099.99,0.00033424,8]
[425065328,1781447591000,-586.53,0.00033424,8]
[425065329,1781447591000,-899.88,0.00033424,8]
[425065334,1781447591000,-1398.15,0.00033424,8]
[425065333,1781447591000,-520.02,0.00033424,8]
[425065335,1781447591000,-841.95,0.00033424,8]
[425065344,1781447591000,-853.99,0.00033424,8]
[425065336,1781447591000,-608.74789026,0.00033424,8]
[425065337,1781447591000,-554.77,0.00033424,8]
[425065339,1781447591000,-607.25,0.00033424,8]
[425065343,1781447591000,-806.88,0.00033424,8]
[425065342,1781447591000,-615.79775445,0.00033424,8]
[425065341,1781447591000,-510.28,0.00033424,8]
[425065292,1781447591000,-578.78,0.00033424,8]
[425065332,1781447591000,-1195.63,0.00033424,8]
[425065310,1781447591000,-1452.09,0.00033424,8]
[425065340,1781447591000,-638.31,0.00033424,8]
[425065308,1781447591000,-1189.57,0.00033424,8]
[425065311,1781447591000,-1053.08,0.00033424,8]
[425065293,1781447591000,-951.06,0.00033424,8]
[425065286,1781447591000,-1224.99,0.00033424,8]
[425065281,1781447591000,-1573.21,0.00033424,8]
[425065283,1781447591000,-1067.78,0.00033424,8]
[425065287,1781447591000,-508.34,0.00033424,8]
[425065284,1781447591000,-700.76,0.00033424,8]
[425065285,1781447591000,-181.21458994,0.00033424,8]
[425065290,1781447591000,-500.0,0.00033424,8]
[425065289,1781447591000,-514.54,0.00033424,8]
[425065291,1781447591000,-926.37,0.00033424,8]
[425065296,1781447591000,-524.27,0.00033424,8]
[425065295,1781447591000,-553.9,0.00033424,8]
[425065298,1781447591000,-1031.86,0.00033424,8]
[425065288,1781447591000,-1285.32,0.00033424,8]
[425065307,1781447591000,-608.15,0.00033424,8]
[425065297,1781447591000,-1121.81,0.00033424,8]
[425065319,1781447591000,-664.01,0.00033424,8]
[425065318,1781447591000,-1015.25,0.00033424,8]
[425065320,1781447591000,-1047.49,0.00033424,8]